bitfinex/quotes_BTCUSD_20230118
["timestamp","ask_amount","ask_price","bid_price","bid_amount"]
[1674032140466,0.24545363,21249.0,21247.0,0.018831]
[1674032140727,0.326598,21248.0,21247.0,0.018831]
[1674032141088,0.96007263,21250.0,21247.0,0.018831]
[1674032141089,1.07243305,21250.0,21247.0,0.018831]
[1674032141337,1.24302405,21250.0,21247.0,0.018831]
[1674032141619,0.314843,21249.0,21247.0,0.018831]
[1674032141883,0.09,21248.0,21247.0,0.018831]
[1674032142162,0.94881654,21250.0,21247.0,0.018831]
[1674032142681,1.03981654,21250.0,21247.0,0.018831]
[1674032142682,0.94881654,21250.0,21247.0,0.018831]
[1674032142941,0.09,21248.0,21247.0,0.018831]
[1674032143213,1.13801654,21250.0,21247.0,0.018831]
[1674032143478,0.92901654,21250.0,21247.0,0.018831]
[1674032145104,0.54927263,21250.0,21247.0,0.018831]
[1674032145362,0.54927263,21250.0,21247.0,0.48948]
[1674032150896,0.54927263,21250.0,21247.0,0.960134]
[1674032151688,0.54927263,21250.0,21247.0,0.48948]
[1674032151953,0.84927263,21250.0,21247.0,0.48948]
[1674032152222,0.54927263,21250.0,21247.0,0.48948]
[1674032153811,0.77583441,21250.0,21247.0,0.48948]
[1674032154079,1.07583441,21250.0,21247.0,0.48948]
[1674032154425,0.84927263,21250.0,21247.0,0.48948]
[1674032156352,0.54927263,21250.0,21247.0,0.48948]
[1674032157099,0.84927263,21250.0,21247.0,0.48938275]
[1674032157839,0.31666,21249.0,21247.0,0.48938275]
[1674032158058,0.84927263,21250.0,21247.0,0.48938275]
[1674032158311,0.54927263,21250.0,21247.0,0.48938275]
[1674032160843,0.84927263,21250.0,21247.0,0.48938275]
[1674032161829,1.5470764,21250.0,21247.0,0.01873375]
[1674032162114,0.1108,21248.0,21245.0,0.48292808]
[1674032162353,0.336358,21247.0,21245.0,0.48292808]
[1674032162602,0.19072595,21248.0,21245.0,0.95362608]
[1674032162847,0.41236042,21249.0,21245.0,0.95362608]
[1674032163156,0.11236042,21249.0,21245.0,0.95362608]
[1674032163369,0.021,21248.0,21245.0,1.09631971]
[1674032163635,1.48336182,21250.0,21245.0,1.11515071]
[1674032163636,1.18336182,21250.0,21245.0,1.11515071]
[1674032163887,0.021,21249.0,21245.0,1.11515071]
[1674032164130,1.19874442,21250.0,21245.0,1.11515071]
[1674032164388,0.021,21248.0,21245.0,1.2278488]
[1674032164869,1.22110699,21250.0,21245.0,1.2278488]
[1674032165106,0.021,21249.0,21245.0,1.2278488]
[1674032166084,1.22110699,21250.0,21245.0,1.2278488]
[1674032166334,0.021,21248.0,21245.0,1.2278488]
[1674032166572,1.22110699,21250.0,21245.0,1.2278488]
[1674032166809,0.021,21249.0,21245.0,1.2278488]
[1674032167097,1.22110699,21250.0,21245.0,1.2278488]
[1674032167338,0.021,21248.0,21245.0,1.2278488]
[1674032167600,0.3,21249.0,21245.0,1.2278488]
[1674032167842,0.021,21249.0,21245.0,1.2278488]
[1674032168086,1.22110699,21250.0,21245.0,1.2278488]
[1674032168298,0.021,21248.0,21245.0,1.2278488]
[1674032168533,0.3,21249.0,21245.0,1.2278488]
[1674032168801,0.021,21249.0,21245.0,1.2278488]
[1674032169293,0.3553448,21248.0,21245.0,0.7571508]
[1674032169798,0.3553448,21248.0,21245.0,0.64445271]
[1674032170056,0.3763448,21248.0,21245.0,0.64445271]
[1674032171018,0.3763448,21248.0,21245.0,0.7571508]
[1674032171492,0.3763448,21248.0,21245.0,0.9071508]
[1674032171740,0.50620975,21248.0,21245.0,0.7571508]
[1674032172236,0.3763448,21248.0,21245.0,0.7571508]
[1674032172731,0.3763448,21248.0,21245.0,0.8679508]
[1674032172981,0.3763448,21248.0,21245.0,0.61255908]
[1674032173224,0.6763448,21248.0,21245.0,0.61255908]
[1674032173466,0.319753,21247.0,21245.0,0.61255908]
[1674032173714,0.6763448,21248.0,21245.0,0.39887828]
[1674032173715,0.323508,21246.0,21245.0,0.39887828]
[1674032173955,0.6763448,21248.0,21245.0,0.129631]
[1674032174706,0.87850522,21248.0,21245.0,0.018831]
[1674032174951,0.325855,21247.0,21245.0,0.018831]
[1674032175198,0.021,21247.0,21245.0,0.018831]
[1674032176199,0.318676,21246.0,21245.0,0.018831]
[1674032176722,0.315806,21246.0,21245.0,0.018831]
[1674032176973,0.315806,21246.0,21244.0,0.48205646]
[1674032177221,0.021,21246.0,21244.0,0.48205646]
[1674032177955,1.34914122,21248.0,21244.0,0.48205646]
[1674032178201,1.18257065,21248.0,21244.0,0.97161046]
[1674032178693,0.007,21246.0,21244.0,0.97161046]
[1674032179176,0.007,21246.0,21244.0,1.08430855]
[1674032179691,0.007,21246.0,21244.0,0.97161046]
[1674032180214,1.65320465,21248.0,21244.0,0.50088946]
[1674032180714,0.318181,21247.0,21244.0,0.50088946]
[1674032180970,0.29103078,21247.0,21244.0,0.50088946]
[1674032181209,0.007,21246.0,21244.0,0.50088946]
[1674032181420,0.59103078,21247.0,21244.0,0.50088946]
[1674032181669,0.315225,21246.0,21244.0,0.50088946]
[1674032181928,0.39862554,21246.0,21244.0,0.50088946]
[1674032182169,0.314455,21245.0,21244.0,0.50088946]
[1674032182421,0.69862554,21246.0,21244.0,0.03018446]
[1674032182673,0.320493,21245.0,21244.0,0.03018446]
[1674032184159,0.327493,21245.0,21244.0,0.03018446]
[1674032185130,0.888193,21245.0,21244.0,0.03018446]
[1674032185370,1.11085342,21245.0,21244.0,0.03018446]
[1674032185622,2.65567565,21245.0,21244.0,0.03018446]
[1674032186085,3.94571666,21245.0,21244.0,0.03018446]
[1674032186357,4.35779874,21245.0,21244.0,0.03018446]
[1674032186632,0.36750712,21244.0,21243.0,0.00914646]
[1674032186935,0.18389952,21243.0,21242.0,0.01104908]
[1674032187214,4.8576167,21243.0,21242.0,0.01104908]
[1674032187472,0.15,21242.0,21239.0,0.01232643]
[1674032187761,0.3309,21240.0,21239.0,0.01232643]
[1674032188034,1.409424,21240.0,21239.0,0.01232643]
[1674032188291,1.72523683,21240.0,21239.0,0.01232643]
[1674032189384,1.51623683,21240.0,21239.0,0.01232643]
[1674032189639,1.81623683,21240.0,21239.0,0.01232643]
[1674032190504,1.04542783,21240.0,21239.0,0.01232643]
[1674032190778,0.93522783,21240.0,21239.0,0.01232643]
[1674032191056,0.62751283,21240.0,21239.0,0.01232643]
[1674032191357,0.96324483,21240.0,21239.0,0.01232643]
[1674032192948,0.51761283,21240.0,21239.0,0.01232643]
[1674032193978,0.85068483,21240.0,21239.0,0.01232643]
[1674032194256,0.51761283,21240.0,21239.0,0.01232643]
[1674032194773,0.71277261,21240.0,21239.0,0.01232643]
[1674032195039,1.35885083,21240.0,21239.0,0.01232643]
[1674032195575,1.82965983,21240.0,21239.0,0.01232643]
[1674032196583,2.30046883,21240.0,21239.0,0.01232643]
[1674032196585,1.82965983,21240.0,21239.0,0.01232643]
[1674032197114,2.63287621,21240.0,21239.0,0.01232643]
[1674032197382,2.74317621,21240.0,21239.0,0.01232643]
[1674032199316,2.41076883,21240.0,21239.0,0.01232643]
[1674032204447,2.71076883,21240.0,21239.0,0.01232643]
[1674032204968,2.41076883,21240.0,21239.0,0.01232643]
[1674032206879,2.71076883,21240.0,21239.0,0.01232643]
[1674032207380,2.41076883,21240.0,21239.0,0.01232643]
[1674032207623,2.85667301,21240.0,21239.0,0.01232643]
[1674032207885,2.41076883,21240.0,21239.0,0.01232643]
[1674032208942,2.41076883,21240.0,21239.0,0.01224475]
[1674032211291,2.30006883,21240.0,21239.0,0.01224475]
[1674032211539,2.29807581,21240.0,21239.0,0.01224475]
[1674032211811,1.35645781,21240.0,21239.0,0.01224475]
[1674032212158,0.83785083,21240.0,21239.0,0.01224475]
[1674032212634,0.51761283,21240.0,21239.0,0.01224475]
[1674032214491,0.98842183,21240.0,21239.0,0.01224475]
[1674032214994,1.29611283,21240.0,21239.0,0.01224475]
[1674032215550,1.40691283,21240.0,21239.0,0.01224475]
[1674032216350,1.60582471,21240.0,21239.0,0.01224475]
[1674032217707,1.40691283,21240.0,21239.0,0.01224475]
[1674032218491,1.87772183,21240.0,21239.0,0.01224475]
[1674032219361,2.1758435,21240.0,21239.0,0.01224475]
[1674032219621,2.2858435,21240.0,21239.0,0.01224475]
[1674032219878,2.3978392,21240.0,21239.0,0.01224475]
[1674032220162,2.6978392,21240.0,21239.0,0.01224475]
[1674032220429,2.80947723,21240.0,21239.0,0.01224475]
[1674032221238,3.39748154,21240.0,21239.0,0.01224475]
[1674032221514,3.50947724,21240.0,21239.0,0.01224475]
[1674032221803,3.67746758,21240.0,21239.0,0.01224475]
[1674032222079,3.86547188,21240.0,21239.0,0.01224475]
[1674032222637,3.67749841,21240.0,21239.0,0.01224475]
[1674032222900,4.08829841,21240.0,21239.0,0.01224475]
[1674032223435,3.97627188,21240.0,21239.0,0.01224475]
[1674032223705,4.66496726,21240.0,21239.0,0.01224475]
[1674032224270,3.90047781,21240.0,21239.0,0.01224475]
[1674032224841,3.73226866,21240.0,21239.0,0.01224475]
[1674032225100,3.90047705,21240.0,21239.0,0.01224475]
[1674032225414,3.95793915,21240.0,21239.0,0.01224475]
[1674032225686,3.95793915,21240.0,21238.0,0.00800674]
[1674032225687,0.46007627,21239.0,21238.0,0.00800674]
[1674032225960,4.20989814,21239.0,21238.0,0.00800674]
[1674032226222,4.49039716,21239.0,21238.0,0.00800674]
[1674032226478,4.79749983,21239.0,21238.0,0.00800674]
[1674032227026,4.33742356,21239.0,21238.0,0.00800674]
[1674032227317,5.7887201,21239.0,21238.0,0.00100674]
[1674032227596,0.15,21238.0,21237.0,0.01252379]
[1674032228072,5.19692959,21238.0,21237.0,0.01252379]
[1674032228075,6.14961059,21238.0,21237.0,0.01252379]
[1674032228360,6.5283573,21238.0,21237.0,2.379e-05]
[1674032228624,6.5283573,21238.0,21236.0,0.01380522]
[1674032228625,0.15,21237.0,21236.0,0.01380522]
[1674032228899,5.0203209,21237.0,21236.0,0.01380522]
[1674032229156,6.04261566,21237.0,21235.0,0.01425182]
[1674032229418,6.04261566,21237.0,21230.0,0.03464392]
[1674032229419,3.71924003,21236.0,21230.0,0.03464392]
[1674032229693,0.28005985,21234.0,21230.0,0.03464392]
[1674032229953,3.93783578,21234.0,21230.0,0.03464392]
[1674032230229,2.22976982,21234.0,21230.0,0.03464392]
[1674032230506,2.45383777,21234.0,21230.0,0.03464392]
[1674032230768,2.95912039,21234.0,21230.0,0.03464392]
[1674032231061,3.75112135,21234.0,21230.0,0.03464392]
[1674032231322,4.46280929,21234.0,21230.0,0.03464392]
[1674032231582,5.22908395,21234.0,21230.0,0.03464392]
[1674032232084,5.21174742,21234.0,21230.0,0.03464392]
[1674032232377,4.8098001,21234.0,21230.0,0.03464392]
[1674032232621,5.15376095,21234.0,21230.0,0.03464392]
[1674032232887,4.97758759,21234.0,21230.0,0.03464392]
[1674032233178,4.86574556,21234.0,21230.0,0.03464392]
[1674032233411,4.86757649,21234.0,21230.0,0.03464392]
[1674032233674,5.21859591,21234.0,21230.0,0.03464392]
[1674032233940,5.33043794,21234.0,21230.0,0.03464392]
[1674032234492,3.01512119,21234.0,21230.0,0.03464392]
[1674032235032,3.49044793,21234.0,21230.0,0.03464392]
[1674032235298,3.79044793,21234.0,21230.0,0.03464392]
[1674032235561,3.49044793,21234.0,21230.0,0.03464392]
[1674032236838,3.79044793,21234.0,21230.0,0.03464392]
[1674032237096,3.79044793,21234.0,21230.0,0.01579892]
[1674032237360,3.49044793,21234.0,21230.0,0.01579892]
[1674032238159,3.38021698,21234.0,21230.0,0.01579892]
[1674032238645,1.71117842,21234.0,21230.0,0.01579892]
[1674032238928,1.71117842,21234.0,21230.0,0.16579892]
[1674032239442,1.61917842,21234.0,21231.0,0.1108]
[1674032239713,1.61917842,21234.0,21233.0,0.01878944]
[1674032239714,1.70317842,21234.0,21233.0,0.01878944]
[1674032239972,1.61917842,21234.0,21233.0,0.01778944]
[1674032240244,1.70317842,21234.0,21233.0,0.01878944]
[1674032240523,1.61917842,21234.0,21233.0,0.01778944]
[1674032240781,1.70317842,21234.0,21233.0,0.01878944]
[1674032241041,1.70317842,21234.0,21233.0,0.01778944]
[1674032241042,0.35101942,21234.0,21233.0,0.01778944]
[1674032241312,0.43501942,21234.0,21233.0,0.01878944]
[1674032242651,0.084,21234.0,21233.0,0.01878944]
[1674032242942,0.084,21234.0,21233.0,0.12958944]
[1674032243970,0.18622421,21234.0,21233.0,0.01878944]
[1674032244258,0.51736721,21234.0,21233.0,0.01878944]
[1674032244538,0.52335121,21234.0,21233.0,0.01878944]
[1674032244801,0.084,21234.0,21233.0,0.01878944]
[1674032245376,0.084,21234.0,21233.0,0.46218555]
[1674032245666,0.084,21234.0,21233.0,1.30435055]
[1674032245925,0.084,21234.0,21233.0,1.15435055]
[1674032246179,0.084,21234.0,21233.0,1.15546484]
[1674032246452,0.98949882,21238.0,21233.0,1.04366484]
[1674032246710,0.069,21234.0,21233.0,0.82446484]
[1674032246992,1.25815398,21238.0,21233.0,1.04366484]
[1674032247260,0.069,21234.0,21233.0,0.82446484]
[1674032247519,0.51862482,21238.0,21233.0,1.51492984]
[1674032247799,0.58762482,21238.0,21236.0,0.1108]
[1674032248340,0.539871,21238.0,21236.0,0.1108]
[1674032248624,0.069,21238.0,21236.0,0.1108]
[1674032248898,0.069,21238.0,21237.0,0.1102]
[1674032249184,0.91355234,21239.0,21237.0,0.1102]
[1674032249454,0.069,21238.0,21237.0,0.1102]
[1674032250004,0.91355234,21239.0,21237.0,0.1102]
[1674032250266,0.91355234,21239.0,21237.0,0.1112]
[1674032250267,0.98955234,21239.0,21237.0,0.1112]
[1674032250700,0.91355234,21239.0,21237.0,0.1102]
[1674032250940,0.076,21238.0,21237.0,0.1112]
[1674032251377,0.91355234,21239.0,21237.0,0.1102]
[1674032251606,0.98955234,21239.0,21237.0,0.1112]
[1674032251862,0.91355234,21239.0,21237.0,0.1102]
[1674032252176,0.076,21238.0,21237.0,0.1112]
[1674032252440,0.076,21238.0,21237.0,0.11231408]
[1674032252703,0.076,21238.0,21237.0,0.1112]
[1674032252960,0.91355234,21239.0,21237.0,0.1102]
[1674032253215,0.98955234,21239.0,21238.0,0.1108]
[1674032253472,0.91355234,21239.0,21238.0,0.1108]
[1674032254255,0.98955234,21239.0,21238.0,0.1118]
[1674032256642,0.98955234,21239.0,21238.0,0.11171909]
[1674032256884,0.54152628,21239.0,21238.0,0.22251909]
[1674032258524,0.54152628,21239.0,21238.0,0.22363312]
[1674032259971,0.54152628,21239.0,21238.0,0.54836803]
[1674032260223,0.53502628,21239.0,21238.0,0.54836803]
[1674032260479,0.53502628,21239.0,21238.0,0.0764]
[1674032260723,0.53502628,21239.0,21238.0,0.07751403]
[1674032261256,0.53502628,21239.0,21238.0,0.0764]
[1674032262527,0.53502628,21239.0,21238.0,1.018108]
[1674032263032,0.53502628,21239.0,21238.0,1.393508]
[1674032264310,0.45292628,21239.0,21238.0,1.392508]
[1674032264555,0.45792628,21239.0,21238.0,1.413508]
[1674032264808,0.45072628,21239.0,21238.0,1.392508]
[1674032265073,0.45072628,21239.0,21238.0,1.413508]
[1674032265074,0.45572628,21239.0,21238.0,1.413508]
[1674032265331,0.45072628,21239.0,21238.0,1.392508]
[1674032265578,0.45572628,21239.0,21238.0,1.413508]
[1674032266149,0.45572628,21239.0,21238.0,1.41462203]
[1674032267138,0.64645223,21239.0,21238.0,1.038108]
[1674032267393,0.45572628,21239.0,21238.0,1.038108]
[1674032271392,0.45572628,21239.0,21238.0,1.338108]
[1674032272175,0.45572628,21239.0,21238.0,1.038108]
[1674032272453,0.45572628,21239.0,21238.0,1.413508]
[1674032273833,0.45572628,21239.0,21238.0,1.884362]
[1674032280072,0.45572628,21239.0,21238.0,1.808962]
[1674032281378,0.005,21239.0,21238.0,1.808962]
[1674032281912,0.005,21239.0,21238.0,1.508962]
[1674032282932,0.005,21239.0,21238.0,1.433562]
[1674032283675,0.005,21239.0,21238.0,1.733562]
[1674032284512,0.005,21239.0,21238.0,1.732562]
[1674032286694,0.005,21239.0,21238.0,1.807762]
[1674032288522,0.005,21239.0,21238.0,1.80792836]
[1674032288770,0.005,21239.0,21238.0,2.7495193]
[1674032289045,0.005,21239.0,21238.0,2.86221739]
[1674032289318,0.005,21239.0,21238.0,2.7495193]
[1674032290348,0.005,21239.0,21238.0,2.86221739]
[1674032291881,0.005,21239.0,21238.0,1.80792836]
[1674032292138,0.005,21239.0,21238.0,3.29353142]
[1674032292393,0.00180525,21239.0,21238.0,3.61651721]
[1674032292653,0.00180525,21239.0,21238.0,3.89831925]
[1674032293163,0.00180525,21239.0,21238.0,3.67252886]
[1674032293972,0.00180525,21239.0,21238.0,3.20403581]
[1674032294250,0.00523922,21243.0,21238.0,4.41979443]
[1674032294521,0.00523922,21243.0,21242.0,0.1507]
[1674032294984,0.00523922,21243.0,21242.0,2.14631435]
[1674032294988,0.00523922,21243.0,21242.0,2.97533506]
[1674032295244,0.00523922,21243.0,21242.0,2.33376]
[1674032295803,0.00523922,21243.0,21242.0,3.49475779]
[1674032296104,0.00523922,21243.0,21242.0,2.58348437]
[1674032296345,0.00523922,21243.0,21242.0,3.63744377]
[1674032296617,0.00523922,21243.0,21242.0,3.52488348]
[1674032297144,0.00523922,21243.0,21242.0,3.63744045]
[1674032297661,0.00523922,21243.0,21242.0,3.88167949]
[1674032297931,0.00523922,21243.0,21242.0,3.71284796]
[1674032298193,0.00523922,21243.0,21242.0,2.65888437]
[1674032298458,0.00523922,21243.0,21242.0,3.71282231]
[1674032298989,0.00523922,21243.0,21242.0,3.88165384]
[1674032299289,0.00523922,21243.0,21242.0,2.65888437]
[1674032300381,2.2e-07,21243.0,21242.0,3.49471305]
[1674032300645,0.00523922,21247.0,21243.0,0.14953717]
[1674032300948,0.00523922,21247.0,21246.0,0.0754]
[1674032301196,0.00523922,21247.0,21246.0,1.958104]
[1674032301745,0.00523922,21247.0,21246.0,2.60546161]
[1674032302274,0.03123922,21247.0,21246.0,2.61046161]
[1674032302530,0.03123922,21247.0,21246.0,2.68586161]
[1674032304114,0.03123922,21247.0,21246.0,2.53506161]
[1674032304831,0.03123922,21247.0,21246.0,1.887704]
[1674032305409,0.03123922,21247.0,21246.0,1.417028]
[1674032308200,0.03123922,21247.0,21246.0,0.946352]
[1674032309461,0.03123922,21247.0,21246.0,0.94693981]
[1674032311264,0.03123922,21247.0,21246.0,0.946352]
[1674032312048,0.09123922,21247.0,21246.0,0.942352]
[1674032312825,0.09123922,21247.0,21246.0,0.001]
[1674032317348,0.09123922,21247.0,21246.0,0.942352]
[1674032317856,0.09123922,21247.0,21246.0,0.471676]
[1674032318156,0.09123922,21247.0,21246.0,0.26346267]
[1674032321206,0.09123922,21247.0,21245.0,0.470679]
[1674032321463,0.336603,21246.0,21245.0,0.470679]
[1674032321991,0.39123922,21247.0,21245.0,0.470679]
[1674032322294,0.00523922,21247.0,21245.0,0.470679]
[1674032322551,0.09123922,21247.0,21245.0,0.470679]
[1674032323067,0.16603922,21247.0,21245.0,0.470679]
[1674032324384,0.16603922,21247.0,21244.0,0.470704]
[1674032324675,0.46603922,21247.0,21244.0,0.470704]
[1674032325205,0.69133793,21247.0,21244.0,0.470704]
[1674032325464,0.69133793,21247.0,21244.0,0.941425]
[1674032325743,0.60533793,21247.0,21244.0,0.941425]
[1674032325966,0.32433793,21247.0,21244.0,0.942425]
[1674032326222,0.09903922,21247.0,21244.0,0.942425]
[1674032329292,0.02423922,21247.0,21244.0,0.942425]
[1674032329540,0.02423922,21247.0,21245.0,0.12962978]
[1674032329862,0.02423922,21247.0,21246.0,0.470676]
[1674032331120,0.00523922,21247.0,21246.0,0.470676]
[1674032331412,0.09223922,21247.0,21246.0,0.470676]
[1674032336079,0.09223922,21247.0,21246.0,0.941352]
[1674032338002,0.09223922,21247.0,21246.0,1.241352]
[1674032338252,0.09223922,21247.0,21246.0,0.941352]
[1674032338508,0.09223922,21247.0,21246.0,1.241352]
[1674032339831,0.09216518,21247.0,21246.0,1.241352]
[1674032340366,0.09216518,21247.0,21246.0,1.24241824]
[1674032340632,0.09216518,21247.0,21246.0,0.94241824]
[1674032340891,0.09216518,21247.0,21246.0,1.24241824]
[1674032341417,0.09216518,21247.0,21246.0,0.94241824]
[1674032341665,0.09216518,21247.0,21246.0,1.24241824]
[1674032343476,0.09216518,21247.0,21246.0,1.241352]
[1674032347540,0.09216518,21247.0,21246.0,2.18265409]
[1674032347811,0.09216518,21247.0,21246.0,2.46464099]
[1674032348211,0.09216518,21247.0,21246.0,2.56770907]
[1674032348299,0.09216518,21247.0,21246.0,2.84966697]
[1674032348431,0.09216518,21247.0,21246.0,2.68049005]
[1674032348643,0.09216518,21247.0,21246.0,1.62640698]
[1674032349117,0.09216518,21247.0,21246.0,2.68050376]
[1674032349318,0.09216518,21247.0,21246.0,1.62747322]
[1674032351148,0.09216518,21247.0,21246.0,1.41159704]
[1674032352992,0.09216518,21247.0,21246.0,2.46565295]
[1674032353301,0.09216518,21247.0,21246.0,2.84519545]
[1674032354134,0.0914532,21247.0,21246.0,3.05560223]
[1674032354393,0.0914532,21247.0,21246.0,3.3407052]
[1674032354656,0.0914532,21247.0,21246.0,4.00924697]
[1674032354939,0.0914532,21247.0,21246.0,3.72744493]
[1674032355199,0.0914532,21247.0,21246.0,4.00921475]
[1674032355479,0.0044532,21247.0,21246.0,2.91194627]
[1674032355744,0.0124532,21247.0,21246.0,2.92394627]
[1674032356241,0.0124532,21247.0,21246.0,3.13430556]
[1674032356519,0.0044532,21247.0,21246.0,3.12230556]
[1674032356776,0.0124532,21247.0,21246.0,2.19301804]
[1674032357578,0.0044532,21247.0,21246.0,2.18101804]
[1674032357834,0.0124532,21247.0,21246.0,2.19301804]
[1674032359181,0.0124532,21247.0,21246.0,3.62596872]
[1674032359432,0.0124532,21247.0,21246.0,3.73857749]
[1674032360164,0.0124532,21247.0,21246.0,3.40057512]
[1674032360194,0.0124532,21247.0,21246.0,2.71336297]
[1674032360418,0.0124532,21247.0,21246.0,2.60071643]
[1674032360680,0.0124532,21247.0,21246.0,3.10779029]
[1674032360936,0.0124532,21247.0,21246.0,2.82598825]
[1674032361197,0.0124532,21247.0,21246.0,3.10779029]
[1674032361479,0.0124532,21247.0,21246.0,2.88224744]
[1674032362795,0.0124532,21247.0,21246.0,2.99486709]
[1674032363318,0.0124532,21247.0,21246.0,2.88223686]
[1674032363586,0.0124532,21247.0,21246.0,2.66450885]
[1674032363920,0.00446088,21247.0,21246.0,2.62756023]
[1674032364166,0.00446088,21247.0,21246.0,3.16326775]
[1674032364404,0.00446088,21247.0,21246.0,2.93807768]
[1674032364644,0.00446088,21247.0,21246.0,3.05039601]
[1674032365137,0.00446088,21247.0,21246.0,2.82518437]
[1674032366619,0.00446088,21247.0,21246.0,3.05039601]
[1674032368107,0.00446088,21247.0,21246.0,2.88148728]
[1674032369879,0.00446088,21247.0,21246.0,3.05041224]
[1674032370137,0.00446088,21247.0,21246.0,3.08858932]
[1674032370918,0.00446088,21247.0,21246.0,2.97572055]
[1674032372446,0.00446088,21247.0,21246.0,2.86314277]
[1674032373474,0.00446088,21247.0,21246.0,2.75050891]
[1674032373746,0.00523922,21248.0,21246.0,2.73850891]
[1674032374024,0.00523922,21248.0,21247.0,0.56263633]
[1674032374287,0.00523922,21248.0,21247.0,2.44515692]
[1674032374541,0.00523922,21248.0,21247.0,1.391308]
[1674032374790,0.00523922,21248.0,21247.0,1.241308]
[1674032375048,0.01323922,21248.0,21247.0,1.241308]
[1674032375547,0.01323922,21248.0,21247.0,2.29516201]
[1674032375548,0.00523922,21248.0,21247.0,2.29516201]
[1674032375553,0.00523922,21248.0,21247.0,2.30916201]
[1674032375807,0.01223922,21248.0,21247.0,2.30916201]
[1674032376060,0.01223922,21248.0,21247.0,2.68871429]
[1674032377086,0.01223922,21248.0,21247.0,2.76391429]
[1674032377350,0.01223922,21248.0,21247.0,2.76375169]
[1674032377607,0.01223922,21248.0,21247.0,2.55329528]
[1674032377856,0.01223922,21248.0,21247.0,2.38436201]
[1674032381703,0.01223922,21248.0,21247.0,1.44314433]
[1674032382987,0.01223922,21248.0,21247.0,2.38438718]
[1674032385232,0.01223922,21248.0,21247.0,2.76384826]
[1674032385483,0.01223922,21248.0,21247.0,2.65121193]
[1674032385754,0.01223922,21248.0,21247.0,2.87642357]
[1674032386508,0.01223922,21248.0,21247.0,2.7640807]
[1674032388256,0.01216783,21248.0,21247.0,2.91445081]
[1674032388499,0.01216783,21248.0,21247.0,3.02525081]
[1674032388753,0.01216783,21248.0,21247.0,2.74344877]
[1674032389004,0.01216783,21248.0,21247.0,2.79985072]
[1674032391297,0.01216783,21248.0,21247.0,2.68706034]
[1674032391560,0.01216783,21248.0,21247.0,2.91263045]
[1674032394105,0.01216783,21248.0,21247.0,2.74344877]
[1674032394878,0.01216783,21248.0,21247.0,2.7996807]
[1674032395676,0.01216783,21248.0,21247.0,2.74356823]
[1674032397721,0.01216783,21248.0,21247.0,2.91285701]
[1674032398292,0.01216783,21248.0,21247.0,3.02537027]
[1674032398511,0.01216783,21248.0,21247.0,2.74356823]
[1674032398756,0.01216783,21248.0,21247.0,2.38716909]
[1674032399012,0.01216783,21248.0,21247.0,2.44359922]
[1674032399264,0.01216783,21248.0,21247.0,2.4996807]
[1674032399800,0.01216783,21248.0,21247.0,2.72538983]
[1674032400289,0.01216783,21248.0,21247.0,2.91458983]
[1674032400544,0.01216783,21248.0,21247.0,2.63278779]
[1674032400832,0.01216783,21248.0,21247.0,2.97135408]
[1674032401059,0.01216783,21248.0,21247.0,2.97135414]
[1674032402117,0.01216783,21248.0,21247.0,2.74564501]
[1674032402352,0.01216783,21248.0,21247.0,2.47869287]
[1674032402853,0.01216783,21248.0,21247.0,2.17869287]
[1674032403140,0.01216783,21248.0,21247.0,2.47869287]
[1674032403709,0.01216783,21248.0,21247.0,2.85866367]
[1674032403942,0.01216783,21248.0,21247.0,2.74580477]
[1674032404199,0.01216783,21248.0,21247.0,2.5427408]
[1674032404452,0.01216783,21248.0,21247.0,2.65560261]
[1674032404752,0.01216783,21248.0,21247.0,2.35559699]
[1674032405013,0.01216783,21248.0,21247.0,2.65559554]
[1674032405262,0.01216783,21248.0,21247.0,2.2756255]
[1674032405516,0.01216783,21248.0,21247.0,2.35559048]
[1674032405774,0.01216783,21248.0,21247.0,2.65559048]
[1674032406102,0.01216783,21248.0,21247.0,2.76844411]
[1674032406310,0.01216783,21248.0,21247.0,2.59915342]
[1674032407081,0.01216783,21248.0,21247.0,2.7684362]
[1674032407378,0.01216783,21248.0,21247.0,2.65558201]
[1674032407613,0.01216783,21248.0,21247.0,2.27562494]
[1674032408127,0.09019277,21250.0,21247.0,2.27562494]
[1674032408384,0.1102,21249.0,21247.0,1.33438209]
[1674032408943,0.1102,21249.0,21248.0,0.94124799]
[1674032409203,0.1102,21249.0,21248.0,1.99536693]
[1674032409728,0.1102,21249.0,21248.0,2.29536693]
[1674032410511,0.1102,21249.0,21248.0,1.99536693]
[1674032410780,0.1102,21249.0,21248.0,2.29536693]
[1674032411052,0.1108,21251.0,21248.0,2.70921463]
[1674032411284,0.1108,21251.0,21249.0,1.05409975]
[1674032411606,0.1108,21251.0,21250.0,0.941176]
[1674032413208,0.1808,21251.0,21250.0,0.943176]
[1674032413730,0.1808,21251.0,21250.0,1.243176]
[1674032414212,0.07,21251.0,21250.0,2.61159065]
[1674032414486,0.07,21251.0,21250.0,2.87943435]
[1674032414740,0.07,21251.0,21250.0,2.61153843]
[1674032415299,0.07,21251.0,21250.0,3.21760257]
[1674032415556,0.07,21251.0,21250.0,2.93580053]
[1674032415825,0.07,21251.0,21250.0,3.21760257]
[1674032416337,0.07,21251.0,21250.0,3.10492197]
[1674032418258,0.07,21251.0,21250.0,2.61148546]
[1674032418800,0.07,21251.0,21250.0,3.09975527]
[1674032419092,0.07,21251.0,21250.0,3.15634296]
[1674032419350,0.07,21251.0,21250.0,3.21243587]
[1674032419958,0.07,21251.0,21250.0,3.15607169]
[1674032420221,0.07,21251.0,21250.0,3.10155537]
[1674032420486,0.00561507,21252.0,21250.0,2.87611751]
[1674032421030,0.00561507,21252.0,21250.0,1.66828084]
[1674032421288,0.011,21251.0,21250.0,1.72466484]
[1674032421575,0.011,21251.0,21250.0,2.60936779]
[1674032422099,0.011,21251.0,21250.0,2.77845147]
[1674032422379,0.01461507,21252.0,21250.0,2.99672666]
[1674032422640,0.00561507,21252.0,21251.0,0.56269923]
[1674032422911,0.00561507,21252.0,21251.0,2.82424089]
[1674032423425,0.01461507,21252.0,21251.0,2.71175291]
[1674032423695,0.00561507,21252.0,21251.0,1.241132]
[1674032423954,0.01361507,21252.0,21251.0,0.949132]
[1674032424226,0.12441507,21252.0,21251.0,0.949132]
[1674032425557,0.12441507,21252.0,21251.0,0.94934325]
[1674032426655,0.12441507,21252.0,21251.0,1.24934325]
[1674032428039,0.01361507,21252.0,21251.0,1.24934325]
[1674032428556,0.01361507,21252.0,21251.0,2.3030655]
[1674032428557,0.01350238,21252.0,21251.0,2.3030655]
[1674032429097,0.01350238,21252.0,21251.0,0.949132]
[1674032429372,0.01350238,21252.0,21251.0,0.94955316]
[1674032429641,0.01350238,21252.0,21251.0,1.24955316]